bitfinex/quotes_ETHUSD_20251201
["timestamp","ask_amount","ask_price","bid_price","bid_amount"]
[1764602591240,0.74364587,2791.0,2790.4,14.33486236]
[1764602591440,0.74364587,2790.9,2790.4,7.16743118]
[1764602591639,0.74364587,2790.8,2790.5,0.244]
[1764602591840,0.74364587,2790.7,2790.2,3.58397247]
[1764602592078,0.74364587,2790.6,2790.1,0.4271]
[1764602592239,0.74364587,2790.5,2790.1,7.35127535]
[1764602592569,0.74364587,2790.4,2790.1,7.35127535]
[1764602592765,0.92769071,2790.7,2790.1,7.35127535]
[1764602592766,0.74364587,2790.3,2790.1,7.35127535]
[1764602592974,1.67133658,2790.6,2790.1,7.30127535]
[1764602593139,0.92769071,2790.3,2789.9,0.001]
[1764602593336,0.74364587,2790.2,2789.9,0.001]
[1764602593564,0.74364587,2790.1,2789.9,0.001]
[1764602593774,0.74364587,2790.0,2789.9,0.4838]
[1764602593940,0.74364587,2790.2,2789.9,0.4838]
[1764602594288,1.74340056,2790.0,2789.9,0.001]
[1764602594580,1.74340056,2790.0,2787.5,0.4828]
[1764602594581,0.72559411,2789.5,2787.5,0.4828]
[1764602594782,0.92999776,2788.7,2787.5,0.4828]
[1764602595367,0.92999776,2788.7,2787.6,10.76194575]
[1764602595541,0.92999776,2788.7,2787.6,14.349261]
[1764602595739,0.92999776,2788.8,2788.6,0.1821]
[1764602595973,0.92999776,2789.4,2788.7,0.4828]
[1764602596141,0.92999776,2789.6,2789.1,0.1821]
[1764602596339,0.92999776,2789.6,2788.7,0.4828]
[1764602596542,0.92999776,2789.4,2788.3,0.1821]
[1764602596779,0.92999776,2789.0,2788.3,0.6649]
[1764602597255,0.92999776,2789.1,2788.4,0.4828]
[1764602597569,0.92999776,2789.0,2788.5,7.17231486]
[1764602597781,0.92999776,2789.0,2788.5,3.58615743]
[1764602597980,0.92999776,2788.9,2788.1,3.58667192]
[1764602598146,0.92999776,2788.6,2788.1,7.17334384]
[1764602598341,0.92999776,2788.6,2788.1,3.58667192]
[1764602598542,0.92999776,2788.6,2787.5,0.245]
[1764602598543,0.92999776,2788.5,2787.5,0.001]
[1764602598877,0.92999776,2788.5,2787.6,11.2447094]
[1764602599073,0.92999776,2788.5,2787.7,0.244]
[1764602599241,0.92999776,2788.6,2787.7,0.7268]
[1764602599442,0.21699948,2789.1,2787.7,0.7268]
[1764602599443,0.92999776,2788.7,2788.5,3.58615743]
[1764602599671,0.92999776,2788.7,2788.5,7.17231486]
[1764602599862,0.92999776,2788.7,2788.3,3.58641466]
[1764602600064,0.92999776,2788.4,2787.6,7.1746305]
[1764602600277,0.92999776,2788.5,2787.7,0.4828]
[1764602600473,0.92999776,2788.6,2787.7,1.55910281]
[1764602600676,1.48399701,2788.8,2787.8,0.7268]
[1764602600882,0.92891873,2788.6,2787.8,0.7268]
[1764602601181,0.92891873,2788.6,2787.9,0.4828]
[1764602601349,0.92891873,2788.7,2787.9,0.4828]
[1764602601662,0.92891873,2788.7,2788.0,10.76040171]
[1764602602173,0.92891873,2788.7,2788.1,0.6649]
[1764602602519,0.21689157,2788.7,2788.1,0.6649]
[1764602602643,0.21689157,2788.7,2788.0,10.76040171]
[1764602602644,0.92891873,2788.4,2787.5,0.001]
[1764602602844,0.92891873,2788.0,2787.5,3.58841888]
[1764602603054,0.92891873,2788.0,2787.5,7.17586282]
[1764602603055,0.244,2787.9,2787.5,7.17586282]
[1764602603375,0.92891873,2788.5,2787.6,0.4828]
[1764602603579,0.244,2788.3,2787.7,10.76155968]
[1764602603744,1.09481873,2788.7,2787.7,14.34874624]
[1764602603945,1.17291873,2788.7,2787.8,0.4828]
[1764602604150,1.39341873,2788.6,2787.5,0.001]
[1764602604348,0.92891873,2788.1,2787.5,0.001]
[1764602604560,0.244,2788.0,2787.5,3.58842895]
[1764602604781,0.244,2788.0,2787.5,7.17587289]
[1764602604981,0.244,2788.0,2787.5,3.58842895]
[1764602605271,0.244,2788.0,2787.5,0.001]
[1764602605272,1.05970985,2788.0,2787.5,0.001]
[1764602605472,0.44286286,2788.0,2787.5,0.001]
[1764602606585,0.244,2788.0,2787.5,0.001]
[1764602607107,0.244,2787.9,2787.5,0.001]
[1764602607312,0.74068675,2788.4,2787.5,0.001]
[1764602607313,0.74068675,2788.4,2787.5,0.4838]
[1764602607490,0.74064274,2788.5,2787.6,7.1746305]
[1764602607697,0.25788157,2788.7,2787.7,0.4828]
[1764602607901,0.244,2788.6,2787.7,0.4828]
[1764602608085,1.09481873,2788.9,2787.7,0.4828]
[1764602608086,0.92891873,2788.9,2787.7,0.4828]
[1764602608271,0.1659,2788.8,2787.5,0.001]
[1764602608476,0.92891873,2788.4,2787.6,3.58731525]
[1764602608775,0.59520985,2788.3,2787.5,3.58844394]
[1764602608978,0.96541779,2788.3,2787.5,7.17588788]
[1764602609277,4.68891873,2787.6,2787.2,0.001]
[1764602609477,1.9093011,2787.5,2787.2,0.001]
[1764602609787,0.92485558,2787.3,2787.2,0.001]
[1764602609988,0.244,2787.6,2787.2,0.001]
[1764602610285,0.244,2787.9,2787.2,0.001]
[1764602610512,0.92485558,2788.4,2787.3,0.4871]
[1764602610798,0.92485558,2787.6,2787.2,0.001]
[1764602610985,0.09989793,2787.3,2787.2,0.001]
[1764602611198,0.244,2787.5,2787.2,0.001]
[1764602611380,0.244,2787.4,2787.2,0.001]
[1764602611577,0.59520985,2787.4,2787.2,0.001]
[1764602611777,0.4699,2787.3,2787.2,0.001]
[1764602612013,4.58110985,2787.3,2787.2,0.001]
[1764602612238,3.2196608,2787.3,2787.2,0.001]
[1764602612393,6.87245095,2787.3,2787.2,0.001]
[1764602612576,31.13109811,2787.2,2785.1,1.10881543]
[1764602612915,31.13109811,2787.2,2785.1,1.02871543]
[1764602612916,0.1533,2785.2,2785.1,1.02871543]
[1764602613091,0.49719793,2785.2,2785.1,1.02871543]
[1764602613293,7.03339778,2785.2,2785.1,0.95121543]
[1764602613491,7.1712592,2785.2,2785.1,0.95121543]
[1764602613689,2.79287494,2785.2,2785.1,0.95121543]
[1764602613893,0.1533,2785.2,2785.1,0.95121543]
[1764602614093,0.81209793,2785.2,2785.1,0.95121543]
[1764602614415,0.18775438,2785.1,2782.0,11.20940654]
[1764602614585,0.18775438,2785.1,2783.1,0.6777]
[1764602614586,2.207,2784.9,2783.1,0.6777]
[1764602614780,1.00073142,2785.0,2783.1,0.6777]
[1764602615023,0.91841957,2786.2,2783.5,9.42225983]
[1764602615213,3.25329254,2787.0,2783.2,0.4871]
[1764602615214,0.91841957,2787.2,2785.4,0.1906]
[1764602615418,4.7504789,2787.8,2785.4,0.1906]
[1764602615615,1.52542952,2787.7,2785.7,0.72559411]
[1764602615813,0.73548163,2787.6,2785.7,0.72559411]
[1764602616114,0.1616,2788.5,2786.1,0.72559411]
[1764602616293,0.1616,2788.5,2785.6,21.53934516]
[1764602616294,0.09989793,2788.4,2786.4,0.72559411]
[1764602616494,0.73685467,2788.7,2786.9,0.72559411]
[1764602616695,0.91841957,2789.4,2787.4,0.72559411]
[1764602616901,0.35120985,2789.4,2787.4,0.72559411]
[1764602617195,0.7371986,2789.4,2787.5,0.9227]
[1764602617394,0.7371986,2789.5,2787.6,0.4871]
[1764602617623,1.23999701,2788.5,2786.7,0.4871]
[1764602617786,0.245,2788.4,2786.7,14.84088008]
[1764602617983,0.35120985,2788.1,2786.8,0.245]
[1764602618293,1.48499701,2788.4,2786.8,0.4871]
[1764602618497,0.35120985,2788.3,2786.8,0.4871]
[1764602618695,0.09989793,2788.7,2787.1,0.72559411]
[1764602618914,0.09989793,2788.7,2786.8,1.21269411]
[1764602619083,0.35120985,2788.5,2786.9,0.7321]
[1764602619291,1.23999701,2788.4,2786.9,0.7321]
[1764602619605,0.35120985,2788.2,2787.0,7.66327508]
[1764602619809,0.7388845,2788.3,2787.0,11.25136262]
[1764602620112,0.7388845,2788.4,2787.1,0.4871]
[1764602620313,0.246,2788.5,2787.1,0.4871]
[1764602620516,0.9848845,2788.5,2787.1,0.4871]
[1764602620812,0.246,2788.5,2787.1,0.4871]
[1764602621018,0.35120985,2788.6,2787.2,0.246]
[1764602621219,1.23999701,2788.9,2787.3,1.40329411]
[1764602621220,0.7388845,2788.9,2787.3,1.40329411]
[1764602621421,0.7388845,2788.8,2787.3,0.6777]
[1764602621634,1.33989494,2788.9,2787.5,7.17488788]
[1764602621635,1.97888151,2788.7,2787.5,7.17488788]
[1764602621930,1.23999701,2788.5,2787.5,7.17488788]
[1764602622139,1.23999701,2788.3,2786.4,3.58880672]
[1764602622302,0.09989793,2787.4,2786.2,7.85593558]
[1764602622620,0.09989793,2787.4,2786.3,0.4871]
[1764602622621,0.35120985,2787.2,2786.3,0.4871]
[1764602622825,0.7388845,2787.1,2786.2,3.58911779]
[1764602623021,1.21789364,2787.0,2786.2,3.58911779]
[1764602623223,0.7388845,2786.9,2785.9,3.58947675]
[1764602623390,0.7388845,2786.8,2785.9,7.17898103]
[1764602623585,1.71900615,2787.0,2785.6,7.1797106]
[1764602623586,0.7388845,2786.9,2785.6,7.1797106]
[1764602623809,0.19979587,2786.7,2785.6,14.84659232]
[1764602624009,0.1616,2787.6,2785.7,1.99635923]
[1764602624216,0.74286596,2787.5,2785.8,0.405504]
[1764602624416,0.74286596,2787.4,2785.9,0.246]
[1764602624614,1.09407581,2787.5,2786.0,0.405504]
[1764602624803,1.40159701,2787.6,2786.0,0.405504]
[1764602624804,0.99243324,2787.4,2786.0,1.083204]
[1764602625005,0.74286596,2787.3,2786.0,1.083204]
[1764602625205,0.74286596,2787.3,2786.1,0.7321]
[1764602625602,0.74286596,2787.3,2786.2,0.4871]
[1764602625918,0.24956728,2787.4,2786.3,14.60195592]
[1764602626118,0.74286596,2787.3,2786.3,12.52187253]
[1764602626427,0.74286596,2787.3,2786.3,14.60195592]
[1764602626924,1.09407581,2787.3,2786.3,14.60195592]
[1764602627093,0.74286596,2787.2,2786.4,0.4871]
[1764602627295,0.74286596,2787.3,2786.4,0.4871]
[1764602627522,0.74286596,2787.2,2786.4,0.4871]
[1764602627822,0.74286596,2787.3,2786.5,10.76619414]
[1764602628022,0.74286596,2787.2,2786.5,10.76619414]
[1764602628190,0.74286596,2787.3,2786.5,7.17746276]
[1764602628530,0.74286596,2787.2,2786.5,10.76619414]
[1764602629095,0.74286596,2787.4,2786.5,14.35492552]
[1764602629422,0.74286596,2787.3,2786.6,0.4871]
[1764602629622,0.74286596,2787.4,2786.6,0.4871]
[1764602629823,0.74286596,2787.5,2786.7,14.59889528]
[1764602629995,1.48499701,2787.7,2786.7,16.46636795]
[1764602629996,0.74286596,2787.4,2786.7,16.46636795]
[1764602630195,0.74286596,2787.6,2786.8,0.4871]
[1764602630395,0.74286596,2787.8,2786.8,0.4871]
[1764602630595,0.74286596,2787.7,2786.8,0.4871]
[1764602630797,0.74286596,2787.8,2786.8,1.21269411]
[1764602630993,0.74286596,2788.0,2786.8,1.21269411]
[1764602631229,0.74286596,2787.9,2786.9,0.4871]
[1764602631527,0.74286596,2788.0,2786.9,0.4871]
[1764602631706,0.245,2788.1,2786.9,0.4871]
[1764602631707,0.74286596,2787.9,2787.0,14.35235016]
[1764602631902,0.245,2788.1,2787.0,10.76426262]
[1764602631903,0.74286596,2787.8,2787.0,10.76426262]
[1764602632104,0.74286596,2787.7,2787.0,10.76426262]
[1764602632428,1.85999552,2787.2,2786.1,7.17849322]
[1764602632729,1.85999552,2787.2,2786.1,10.76773983]
[1764602632730,1.24216649,2787.0,2786.1,10.76773983]
[1764602632933,1.09407581,2786.9,2786.1,10.76773983]
[1764602633144,0.74286596,2786.8,2786.1,10.76773983]
[1764602633300,0.74286596,2786.7,2786.1,10.76773983]
[1764602633502,1.48716649,2787.0,2786.1,14.35698644]
[1764602633503,0.84276389,2786.9,2786.1,14.35698644]
[1764602633733,0.74286596,2786.8,2786.1,7.17849322]
[1764602633935,0.74286596,2786.7,2786.1,10.76773983]
[1764602634240,0.74286596,2786.6,2786.1,7.17849322]
[1764602634447,1.50615945,2786.9,2786.1,10.76773983]
[1764602634448,0.74286596,2786.8,2786.1,10.76773983]
[1764602634596,0.74286596,2786.7,2786.1,10.76773983]
[1764602634803,0.74286596,2786.7,2786.2,0.4871]
[1764602635004,0.74286596,2786.9,2786.3,0.405504]
[1764602635233,1.85999552,2787.9,2786.7,0.72559411]
[1764602635234,0.74566092,2787.6,2786.7,0.72559411]
[1764602635431,1.85999552,2788.1,2786.8,0.244]
[1764602635432,0.74566092,2787.8,2786.8,0.244]
[1764602635708,0.74566092,2788.0,2786.9,17.94108145]
[1764602635908,1.42816604,2788.1,2786.9,18.42818145]
[1764602635909,0.74566092,2787.9,2786.9,18.42818145]
[1764602636144,0.74566092,2787.8,2787.0,0.4871]
[1764602636332,0.98966092,2787.7,2786.9,7.17643258]
[1764602636563,0.09989793,2787.2,2786.6,7.17718247]
[1764602636845,0.74566092,2787.1,2786.6,3.58857988]
[1764602637004,0.74566092,2787.1,2786.3,3.58898898]
[1764602637005,1.98782741,2787.1,2786.3,3.58898898]
[1764602637206,0.94444366,2787.0,2786.3,10.76696694]
[1764602637537,0.74566092,2786.9,2786.4,0.4871]
[1764602637728,0.74566092,2787.2,2786.5,14.35492552]
[1764602638035,0.244,2787.4,2786.5,3.58873138]
[1764602638225,2.08772534,2787.3,2786.5,7.17746276]
[1764602638433,0.74566092,2787.2,2786.5,10.76619414]
[1764602638741,0.74566092,2787.1,2786.5,10.76619414]
[1764602639038,0.74566092,2787.0,2786.5,10.76619414]
[1764602639214,0.74566092,2787.3,2786.5,10.76619414]
[1764602639419,0.74566092,2787.2,2786.5,10.76619414]
[1764602639620,0.74566092,2787.1,2786.5,10.76619414]
[1764602639832,0.74566092,2787.0,2786.5,3.58873138]
[1764602640073,0.74566092,2787.0,2786.4,7.17772034]
[1764602640074,0.74566092,2787.1,2786.4,10.76658051]
[1764602640341,0.74486092,2787.3,2786.7,0.405504]
[1764602640540,1.24216649,2788.0,2786.8,0.244]
[1764602640708,1.24216649,2788.0,2786.8,1.6996777]
[1764602640904,1.24216649,2788.0,2786.9,0.4715]
[1764602641139,1.24216649,2788.4,2787.9,0.1843]
[1764602641313,1.24216649,2789.0,2788.0,0.244]
[1764602641515,1.24216649,2789.4,2788.9,0.1843]
[1764602641804,0.002,2789.5,2789.0,11.00054356]
[1764602642008,0.002,2789.5,2789.2,7.99517886]
[1764602642309,0.002,2789.6,2789.3,1.19709411]
[1764602642509,0.002,2789.6,2789.4,0.244]
[1764602642709,0.002,2789.9,2789.4,0.7155]
[1764602642942,1.24216649,2790.9,2789.6,0.405504]
[1764602643141,1.24216649,2791.1,2789.6,0.405504]
[1764602643305,0.1616,2791.8,2790.1,1.13109811]
[1764602643306,1.24216649,2791.6,2790.1,1.13109811]
[1764602643641,1.24416649,2792.0,2790.6,0.405504]
[1764602643864,1.24416649,2792.0,2790.9,14.33229424]
[1764602644048,0.002,2792.0,2791.0,0.4715]
[1764602644227,0.002,2792.0,2791.1,0.244]
[1764602644625,0.3229,2792.0,2790.3,3.58383529]
[1764602644824,1.24216649,2791.3,2790.2,3.58396115]
[1764602645075,1.24216649,2791.6,2790.2,7.88343362]
[1764602645384,0.09989793,2791.7,2790.2,7.88343362]
[1764602645385,0.59520985,2791.5,2790.2,11.46740609]
[1764602645583,0.244,2791.5,2790.1,3.58406312]
[1764602645736,1.24216649,2791.2,2790.1,7.16816404]
[1764602645925,1.24216649,2791.3,2790.1,14.99216588]
[1764602646281,1.24216649,2791.3,2790.2,0.4715]
[1764602646282,0.244,2791.3,2790.2,0.4715]
[1764602646560,0.5649,2791.3,2790.1,7.16816404]
[1764602646762,0.35120985,2791.2,2790.1,10.99626496]
[1764602646929,0.76469587,2791.3,2790.1,7.35246404]
[1764602647129,0.09989793,2791.0,2789.8,3.58448634]
[1764602647340,0.4116,2791.2,2789.8,14.76794399]
[1764602647663,0.1676,2791.2,2789.9,0.4715]
[1764602647869,0.1676,2791.2,2790.1,7.16820184]
[1764602648041,0.35120985,2791.1,2790.1,7.16820184]
[1764602648230,0.1676,2791.2,2790.0,3.58422939]
[1764602648571,0.35120985,2791.0,2789.9,11.22453471]
[1764602648732,0.244,2791.1,2789.9,11.22453471]
[1764602649059,0.244,2791.1,2789.9,14.80889257]
[1764602649261,0.244,2791.1,2789.9,11.22453471]
[1764602649430,0.244,2791.1,2789.9,14.80889257]
[1764602649631,0.244,2791.1,2789.9,7.64017685]
[1764602649870,0.244,2791.1,2789.9,11.22453471]
[1764602650046,0.244,2791.1,2789.9,14.80889257]
[1764602650233,0.51880985,2791.2,2789.9,10.75303471]
[1764602650562,0.4116,2791.2,2790.0,0.4715]
[1764602650866,0.244,2791.4,2790.0,0.7155]
[1764602651065,1.63262268,2791.9,2790.1,0.1843]
[1764602651066,0.39045619,2791.9,2790.1,0.1843]
[1764602651252,0.244,2791.8,2790.1,0.6558]
[1764602651458,0.002,2792.0,2790.1,0.6558]
[1764602651459,0.244,2791.9,2790.2,0.4715]
[1764602651851,0.002,2792.0,2790.6,17.91729375]
[1764602652050,0.002,2792.0,2790.7,0.96959411]
[1764602652252,0.002,2792.0,2790.7,1.44109411]
[1764602652569,0.002,2792.0,2790.8,2.40733879]
[1764602652947,0.002,2792.0,2790.9,1.19709411]
[1764602653360,0.002,2792.0,2791.0,0.4715]
[1764602653560,0.002,2792.0,2791.1,0.244]
[1764602653958,0.002,2792.0,2791.3,14.33024036]
[1764602654161,0.002,2792.0,2791.3,10.74768027]
[1764602654368,0.002,2792.0,2791.4,0.8998]
[1764602654768,0.002,2792.0,2791.4,0.4283]
[1764602655113,0.002,2792.0,2791.5,0.4715]
[1764602655375,0.002,2792.0,2790.9,9.12627697]
[1764602655376,0.1676,2791.5,2791.1,3.58271614]
[1764602655585,0.002,2792.0,2790.4,14.33486236]
[1764602655751,0.002,2792.0,2790.4,18.79561806]
[1764602655945,0.002,2792.0,2790.5,0.4715]
[1764602656145,0.002,2792.0,2790.7,0.72559411]
[1764602656372,0.002,2792.0,2790.9,0.405504]
[1764602656679,0.002,2792.0,2790.8,0.7155]
[1764602656868,0.002,2792.0,2791.1,7.99517886]
[1764602657044,0.002,2792.0,2791.9,0.1843]
[1764602657249,0.002,2792.0,2791.9,0.4283]
[1764602657446,0.002,2792.0,2791.9,0.8998]
[1764602657780,0.002,2792.3,2791.9,0.8998]
[1764602657979,0.002,2792.3,2792.1,7.16306722]
[1764602658478,0.002,2792.3,2792.2,0.7155]
[1764602658648,0.002,2792.3,2792.2,0.4715]
[1764602658851,0.002,2792.3,2792.2,0.244]
[1764602659056,0.002,2792.3,2792.1,7.16306722]
[1764602659966,0.002,2792.3,2791.4,10.74729525]
[1764602660688,0.35320985,2792.3,2791.4,7.1648635]
[1764602660864,0.002,2792.3,2791.4,7.1648635]
[1764602661188,0.35120985,2792.2,2791.4,7.1648635]
[1764602661389,0.35120985,2792.2,2791.0,0.1843]
[1764602661565,0.35120985,2792.2,2790.6,7.1669175]
[1764602661566,0.1696,2791.5,2790.6,7.1669175]
[1764602661884,0.1696,2791.5,2790.3,0.4715]
[1764602661885,0.52080985,2791.5,2790.4,7.16743118]
[1764602662084,0.52080985,2791.5,2790.4,10.75114677]
[1764602662479,0.35120985,2791.4,2790.4,10.75114677]
[1764602662852,0.1696,2791.5,2790.4,10.75114677]
[1764602663058,0.1696,2791.5,2790.4,15.45712704]
[1764602663288,0.1688,2791.8,2790.5,0.7155]
[1764602663613,0.1688,2791.8,2790.5,0.244]
[1764602663913,0.52000985,2791.8,2790.6,10.75037625]
[1764602664057,3.50549654,2793.1,2790.7,1.61808763]
[1764602664058,1.56426649,2792.5,2790.7,1.61808763]
[1764602664263,0.35320985,2792.3,2790.7,1.61808763]
[1764602664458,0.002,2792.3,2790.8,0.6558]
[1764602664677,0.002,2792.3,2790.9,0.244]
[1764602664899,0.002,2792.3,2790.9,0.7155]
[1764602665109,0.002,2792.3,2791.0,0.877004]
[1764602665560,0.002,2792.3,2791.1,0.7155]
[1764602665966,0.002,2792.3,2791.2,0.4715]
[1764602666194,0.002,2792.3,2791.3,14.33024036]
[1764602666427,0.002,2792.3,2791.3,15.8348144]
[1764602666594,0.002,2792.3,2791.3,16.3063144]
[1764602666992,0.002,2792.3,2791.4,0.4715]
[1764602667419,0.002,2792.3,2791.5,0.244]
[1764602667724,0.002,2792.3,2791.6,0.4715]
[1764602668290,0.74085344,2792.2,2791.7,10.74614034]
[1764602668680,0.74085344,2792.2,2791.8,0.458]
[1764602668881,0.74085344,2792.1,2791.7,3.58204678]
[1764602669092,0.002,2792.3,2791.7,3.58204678]
[1764602669093,0.74085344,2792.0,2791.7,7.16409356]
[1764602669314,0.002,2792.3,2791.7,7.16409356]
[1764602669315,0.74085344,2791.9,2791.7,7.16409356]
[1764602669485,0.74085344,2791.8,2791.7,3.58204678]
[1764602669685,0.74085344,2791.8,2791.7,4.04004678]
[1764602670242,0.74085344,2791.8,2791.4,3.58239805]
[1764602670531,0.002,2792.3,2791.7,0.4765]
[1764602670680,0.74802724,2792.2,2791.7,0.7205]
[1764602670881,0.74802724,2792.1,2791.4,10.74726155]
[1764602671079,1.99019373,2792.0,2791.4,10.74726155]
[1764602671296,1.24216649,2791.7,2791.4,7.1648298]
[1764602671524,0.74802724,2791.6,2791.4,7.1648298]
[1764602671821,0.74802724,2791.5,2790.9,10.74922068]
[1764602671979,1.99742933,2791.4,2790.9,10.74922068]
[1764602672181,1.24940209,2791.2,2790.9,10.74922068]
[1764602672420,0.74802724,2791.1,2791.0,0.4765]
[1764602673399,0.74802724,2791.1,2790.9,7.16614712]
[1764602673699,0.1688,2791.8,2790.9,3.58307356]
[1764602673700,0.74802724,2791.0,2790.9,3.58307356]
[1764602673914,0.74802724,2791.0,2790.9,4.05957356]
[1764602674228,0.74802724,2791.0,2790.9,5.22500723]
[1764602675094,0.74802724,2791.0,2790.9,3.58307356]
[1764602675499,1.07012724,2791.0,2790.5,3.58356924]
[1764602675713,1.25146975,2790.6,2790.5,3.58356924]
[1764602675918,1.99949699,2790.6,2790.5,3.58356924]
[1764602676587,1.99979107,2790.6,2790.4,0.001]
[1764602676791,1.99979107,2790.5,2790.4,0.001]
[1764602676992,1.4561059,2790.5,2790.1,0.001]
[1764602677231,0.35120985,2790.0,2789.9,0.001]
[1764602677444,0.35120985,2790.0,2789.6,0.001]
[1764602677445,1.34323709,2790.0,2789.6,0.001]
[1764602677591,3.76,2789.5,2787.1,0.1835]
[1764602677786,5.69882079,2789.9,2787.1,0.1835]
[1764602677787,0.93761364,2787.5,2787.1,0.66]
[1764602678001,0.74802724,2787.4,2787.1,0.66]
[1764602678220,0.93761364,2787.9,2787.2,0.4765]
[1764602678390,0.7478329,2787.8,2787.3,10.76310405]
[1764602678591,0.7478329,2788.0,2787.4,0.4765]
[1764602678810,0.7478329,2787.9,2787.4,0.7205]
[1764602679031,0.7478329,2787.8,2787.4,0.244]
[1764602679348,0.7478329,2788.1,2787.4,0.244]
[1764602679508,0.7478329,2788.2,2787.4,1.34471041]
[1764602679823,0.7478329,2788.2,2787.4,1.82121041]
[1764602680188,0.7478329,2788.3,2787.4,1.82121041]
[1764602680385,0.7478329,2788.3,2787.1,1.32603348]
[1764602680386,1.09904275,2788.3,2787.1,3.58795881]
[1764602680593,0.93761364,2787.9,2787.1,7.17591762]
[1764602681018,1.68544654,2788.0,2787.1,10.76387643]
[1764602681220,0.7478329,2787.9,2787.1,10.76387643]
[1764602681386,0.532435,2788.0,2787.1,10.76387643]
[1764602681586,0.244,2787.9,2787.1,10.76387643]
[1764602681787,0.244,2787.9,2787.1,7.17591762]
[1764602682016,1.85092349,2787.9,2787.1,3.58795881]
[1764602682220,1.85092349,2787.9,2787.0,0.001]
[1764602682221,1.02583105,2787.8,2787.0,0.001]
[1764602682417,0.84009815,2787.8,2787.0,0.001]
[1764602682607,0.3181,2787.7,2787.0,0.001]
[1764602682807,0.35120985,2787.5,2787.0,0.001]
[1764602683219,0.3181,2787.4,2787.0,0.001]
[1764602683426,0.52199815,2787.8,2787.0,0.001]
[1764602683427,0.27799815,2787.8,2787.0,0.001]
[1764602683594,0.244,2787.4,2787.0,0.001]
[1764602684222,0.19634447,2787.7,2787.0,0.001]
[1764602684410,0.244,2787.7,2787.0,0.001]
[1764602685014,0.3181,2788.3,2787.0,0.001]
[1764602685215,0.90771839,2788.4,2787.1,0.66]
[1764602685403,0.244,2788.3,2787.1,0.66]
[1764602685603,0.1678,2788.4,2787.2,0.4765]
[1764602685928,0.244,2788.3,2787.2,0.4765]
[1764602686094,0.1678,2788.4,2787.2,0.4765]
[1764602686291,0.167,2788.4,2787.2,0.4765]
[1764602686630,0.35120985,2788.3,2787.2,10.76349024]
[1764602687012,0.4843,2788.4,2787.2,14.82782032]
[1764602687013,0.244,2788.2,2787.2,14.82782032]
[1764602687201,0.244,2788.2,2787.2,13.12441378]
[1764602687406,0.244,2788.2,2787.2,7.17566016]
[1764602687407,0.3173,2788.1,2787.2,7.17566016]
[1764602687792,0.3173,2788.1,2787.2,3.58783008]
[1764602688211,0.73875871,2788.3,2787.2,7.17566016]
[1764602688392,0.244,2788.2,2787.2,10.76349024]
[1764602688596,0.91247792,2788.2,2787.2,7.17566016]
[1764602688823,0.74312366,2788.2,2787.2,10.76349024]
[1764602689030,0.73875871,2788.3,2787.2,10.76349024]
[1764602689031,0.244,2788.1,2787.2,14.82782032]
[1764602689198,0.244,2788.1,2787.2,7.17566016]
[1764602689619,0.3173,2788.0,2787.2,7.17566016]
[1764602689804,0.3173,2788.0,2787.2,3.58783008]
[1764602690009,0.3173,2788.0,2787.0,0.001]
[1764602690243,0.35117792,2787.4,2787.0,3.59008301]
[1764602690411,0.244,2787.3,2787.0,3.59008301]
[1764602690601,0.244,2787.3,2787.0,0.002]
[1764602690797,0.35117792,2788.0,2787.0,0.002]
[1764602691005,0.244,2787.9,2787.1,0.1835]
[1764602691197,4.10796191,2788.3,2787.0,0.002]
[1764602691506,0.35117792,2787.9,2787.0,0.002]
[1764602691722,2.02435826,2788.2,2787.0,0.002]
[1764602692028,0.244,2788.1,2787.0,0.4785]
[1764602692229,0.35117792,2788.2,2787.0,0.4785]
[1764602692423,0.167,2788.4,2787.0,0.4785]
[1764602692621,3.83067675,2788.1,2787.1,3.58795881]
[1764602692802,3.83067675,2788.1,2787.1,7.17591762]
[1764602693128,0.35117792,2787.8,2787.1,7.17591762]
[1764602693317,0.3173,2788.0,2787.0,0.002]
[1764602693318,0.3173,2788.0,2787.0,3.59006991]
[1764602693518,0.35117792,2787.2,2787.0,0.002]
[1764602693722,0.244,2787.1,2787.0,0.002]
[1764602694034,0.244,2787.1,2787.0,3.59008754]
[1764602694529,0.244,2787.1,2787.0,0.002]
[1764602694830,0.91247792,2787.1,2787.0,0.002]
[1764602695000,0.244,2787.1,2787.0,0.002]
[1764602695638,0.76109587,2787.1,2787.0,0.002]
[1764602696331,1.19598192,2787.1,2787.0,0.002]
[1764602696533,0.5613,2787.1,2787.0,0.002]
[1764602696701,0.91247792,2787.1,2787.0,0.002]
[1764602696902,9.72278578,2787.1,2787.0,0.002]
[1764602697103,16.93357031,2787.1,2787.0,0.002]
[1764602697644,17.33907431,2787.1,2787.0,0.002]
[1764602697807,27.13124403,2786.8,2786.7,0.001]
[1764602698135,26.96883784,2786.8,2786.7,0.001]
[1764602698449,23.42905965,2786.8,2786.7,0.001]
[1764602698751,9.5371034,2786.8,2786.7,0.001]
[1764602699332,12.40325197,2786.8,2786.7,0.001]
[1764602699552,2.76114729,2786.8,2786.7,0.001]
[1764602699829,1.39795287,2786.8,2786.7,0.001]
[1764602700035,1.15395287,2786.8,2786.7,0.001]
[1764602700246,0.244,2786.8,2786.7,0.001]
[1764602700409,1.2286922,2787.2,2786.7,0.001]
[1764602700410,0.3173,2787.4,2786.7,0.001]
[1764602700602,0.92255298,2787.5,2786.7,0.001]
[1764602700936,0.244,2787.8,2786.8,0.1999]
[1764602701436,0.92255298,2787.6,2786.7,0.001]
[1764602701637,0.3510985,2786.9,2786.7,0.001]
[1764602701818,0.244,2786.8,2786.7,0.001]
[1764602702013,0.92255298,2787.2,2786.7,0.001]
[1764602702215,0.244,2787.1,2786.7,0.001]
[1764602702428,1.48385298,2787.1,2786.7,0.001]
[1764602702617,5.58759064,2786.8,2784.3,0.1835]
[1764602702818,5.58759064,2786.8,2784.4,7.18277487]
[1764602702819,0.92528795,2785.8,2784.4,7.18277487]
[1764602703128,0.72559411,2785.6,2783.8,3.79205041]
[1764602703302,0.92528795,2785.2,2783.9,4.04438304]
[1764602703508,0.92528795,2784.7,2783.4,3.59271113]